Cogmind - Beta 11.1 @@@ ROGUE MODE // 2022.06.08 @ 03:28:50 Player: leiavoia Result: Escaped! Performance ------------- Evolutions (9) 4500 Regions Visited (26) 5200 Robots Destroyed (760) 3800 Value Destroyed (37676) 37676 Prototype IDs (77) 1540 Alien Tech Used (6) 1200 Bonus (44295) 44295 TOTAL SCORE: 98211 Bonus ------- Triggered High Security 1500 High Alert Combat Kills 26620 Follower Combat Kills 2665 Network Hubs Disabled 400 Met Zhirov 300 Met Warlord at Base 500 MAIN.C Attacked Warlord 500 Built Enhanced Grunts 300 A7 Reached Mainframe 300 Met R17 at Cetus 500 Met Warlord at Research 2000 Invited to Help at Command 2000 Scanned by Researcher 500 Acquired SGEMP 2000 Delivered SGEMP 2000 Win 3000 Friendly Fire -790 Cogmind --------- Core Integrity 1010/1600 Matter 300/300 Energy 64/825 System Corruption 37% Temperature Cool (4) Movement Treading (330) Ox2 Location To Epsilon Eridani Parts ------- > --- POWER (2) -------- Reinforced Antimatter Reactor > --- PROPULSION (6) --- Armored Heavy Treads > --- UTILITY (12) ----- Advanced Cooling System Advanced Cooling System Huge Storage Unit Advanced Energy Well Advanced Sensor Array Experimental Core Analyzer High-powered Tractor Beam > --- WEAPON (5) ------- Improved Potential Cannon > --- INVENTORY (25) --- Armored Medium Treads Matter Compressor (9) Transdimensional Reconstructor Peak State ------------ > --- POWER ------------ Quantum Reactor Improved Quantum Reactor > --- PROPULSION ------- Armored Medium Treads Enhanced Armored Medium Treads Improved Heavy Treads Advanced Heavy Siege Treads > --- UTILITY ---------- Advanced Cooling System Advanced Cooling System Huge Storage Unit Advanced Energy Well Experimental Core Analyzer SHELL Armor SHELL Armor AEGIS Remote Shield > --- WEAPON ----------- Enhanced Nova Cannon Enhanced Nova Cannon Improved Potential Cannon Hypercooled Linear Accelerator > --- INVENTORY -------- Reinforced Antimatter Reactor Armored Medium Treads Armored Heavy Treads Armored Heavy Treads Armored Heavy Treads Advanced Cooling System Matter Compressor Advanced Sensor Array Improved Remote Shield High-powered Tractor Beam Transdimensional Reconstructor Improved Matter Neutralizer Enhanced Nova Cannon Enhanced Nova Cannon Null Cannon Tesla Bomb Launcher Hellfire Missile Launcher Sigix Terminator [Rating: 238] Favorites ----------- Power Quantum Reactor Engine Ion Engine Power Core Reinforced Fission Core Reactor Quantum Reactor Propulsion Centrium Heavy Treads Treads Centrium Heavy Treads Leg Aluminum Leg Wheel Wheel Utility Huge Storage Unit Device Experimental Sensor Array Storage Huge Storage Unit Processor Experimental Core Analyzer Hackware Improved Hacking Suite Protection Centrium Medium Armor Plating Artifact Phase Armor Weapon Advanced KE Penetrator Energy Gun Advanced Variable Charge Gun Energy Cannon Cooled Particle Cannon Ballistic Gun Advanced KE Penetrator Ballistic Cannon Heavy Autocannon Launcher Heavy Rocket Launcher Impact Weapon Powered Hammer Slashing Weapon Sigix Broadsword Build | -11 -10 -10 -10 -9 -8 -7 -6 -6 -6 -6 -6 -5 -5 -5 -5 -4 -4 -4 -4 -4 -3 -3 -3 -2 -2 -1 ------- Run | Scr Mat Min Exi Min Mat Fac Fac Ext Cet Arc Hub Fac Upp Upp War Pro Fac Upp Upp Zhi Pro Res Qua Res Tes Acc Slots Evolved 18 | . . . . . 4 2 2 . . . . 2 . . . . 2 . . . . 2 . 2 . 2 Power 1 | . . . . . . . . . . . . 1 . . . . . . . . . . . . . . Propulsion 4 | . . . . . 1 1 . . . . . . . . . . 2 . . . . . . . . . Utility 10 | . . . . . 3 1 1 . . . . . . . . . . . . . . 2 . 2 . 1 Weapon 3 | . . . . . . . 1 . . . . 1 . . . . . . . . . . . . . 1 Parts Attached 643 | 1 13 4 2 13 43 53 14 38 14 10 20 15 6 5 19 13 19 16 2 10 7 64 71 19 98 54 Power 34 | . 1 1 . 2 1 2 1 2 3 . 1 2 . . 1 . . . . 2 . 5 4 . 4 2 Engine 9 | . 1 1 . 2 1 2 1 1 . . . . . . . . . . . . . . . . . . Core 3 | . . . . . . . . . . . . . . . . . . . . . . 1 1 . 1 . Reactor 22 | . . . . . . . . 1 3 . 1 2 . . 1 . . . . 2 . 4 3 . 3 2 Propulsion 73 | . 4 . . 2 12 6 2 9 2 . 1 1 . . . . 4 . . . . 5 9 1 9 6 Treads 62 | . 3 . . . 8 6 2 6 2 . 1 1 . . . . 4 . . . . 5 9 1 8 6 Leg 3 | . . . . . 1 . . 2 . . . . . . . . . . . . . . . . . . Wheel 8 | . 1 . . 2 3 . . 1 . . . . . . . . . . . . . . . . 1 . Hover . | . . . . . . . . . . . . . . . . . . . . . . . . . . . Flight . | . . . . . . . . . . . . . . . . . . . . . . . . . . . Utility 312 | 1 3 2 2 2 14 22 6 11 7 8 9 9 5 1 7 6 4 11 2 4 6 38 39 10 55 28 Device 199 | 1 . . . . 6 13 5 7 2 3 2 7 2 1 2 5 3 9 2 3 3 33 28 5 36 21 Storage 23 | . 2 1 1 . . . . 1 1 1 . . . . 1 . . . . . . 1 1 1 7 5 Processor 9 | . . . . . . 2 . 1 . . . . 1 . 1 . . . . . . . . 3 1 . Hackware 4 | . . . . . . . . . . 4 . . . . . . . . . . . . . . . . Protection 75 | . 1 1 1 2 8 7 1 2 4 . 7 2 2 . 3 1 1 2 . 1 3 4 8 1 11 2 Artifact 2 | . . . . . . . . . . . . . . . . . . . . . . . 2 . . . Weapon 224 | . 5 1 . 7 16 23 5 16 2 2 9 3 1 4 11 7 11 5 . 4 1 16 19 8 30 18 Energy Gun 5 | . . . . . 2 . . . . . . . . . 1 . . 1 . . . . 1 . . . Energy Cannon 71 | . . . . . 5 6 3 1 . 2 2 . 1 1 6 1 4 3 . 3 . 6 6 3 9 9 Ballistic Gun 39 | . 2 . . 3 1 . 1 4 2 . 4 3 . 1 3 2 5 . . . . 6 2 . . . Ballistic Cannon 41 | . 2 . . 2 3 6 . 4 . . . . . 1 1 . . . . 1 . . 6 3 10 2 Launcher 61 | . 1 1 . 2 5 8 . 5 . . 3 . . 1 . 4 2 1 . . 1 4 3 2 11 7 Special Weapon . | . . . . . . . . . . . . . . . . . . . . . . . . . . . Impact Weapon 6 | . . . . . . 3 1 2 . . . . . . . . . . . . . . . . . . Slashing Weapon 1 | . . . . . . . . . . . . . . . . . . . . . . . 1 . . . Piercing Weapon . | . . . . . . . . . . . . . . . . . . . . . . . . . . . Special Melee Weapon . | . . . . . . . . . . . . . . . . . . . . . . . . . . . Unidentified Prototypes 56 | . . . . . 2 1 1 1 4 1 . . . . 8 . . . . 4 . 3 9 2 17 3 Corrupted Parts 3 | . . . . . . . . . . . 2 . . . . . . . . . . . . . . 1 System Corruption 25 | . . . . . . . . . . . 20 . . . . . . . . . . . . . . 5 Parts Lost 90 | . 4 . . 2 6 9 5 9 . . 3 1 . . . . . . . . 1 6 4 . 17 23 Power 9 | . 1 . . . 1 1 1 . . . . . . . . . . . . . . 1 1 . 1 2 Propulsion 19 | . 1 . . . 1 2 1 5 . . . . . . . . . . . . . . . . 3 6 Utility 40 | . 1 . . 1 4 5 2 4 . . 2 1 . . . . . . . . 1 2 3 . 9 5 Weapon 22 | . 1 . . 1 . 1 1 . . . 1 . . . . . . . . . . 3 . . 4 10 Highest Loss Streak 13 | . 3 . . 2 3 6 3 5 . . 2 1 . . . . . . . . 1 1 2 . 4 13 To Critical Strikes 3 | . . . . . . . . . . . . . . . . . . . . . . . . . 2 1 Average Slot Usage (%) 84 | . 99 100 71 99 98 99 99 98 93 85 85 82 87 88 84 76 75 68 68 53 70 78 80 85 74 71 Engine 3 | . 13 14 14 14 9 6 6 5 . . . . . . . . . . . . . . . . . . Reactor 4 | . . . . . . . . . 5 6 6 7 11 11 8 5 5 5 5 5 5 5 4 4 5 7 Treads 16 | . 17 28 28 15 14 29 25 22 19 13 13 11 11 11 11 11 19 15 15 15 15 14 15 13 12 15 Wheel 1 | . 6 . . 12 11 . . 2 . . . . . . . . . . . . . . . . . . Device 13 | . . . . . 14 18 19 13 13 10 9 10 17 20 18 11 10 11 15 13 12 20 18 18 12 12 Storage 7 | . 15 14 14 14 9 7 6 6 6 6 6 5 5 5 5 5 5 5 5 5 5 4 5 7 9 7 Processor 3 | . . . . . . 5 13 16 5 . . . . . . 5 5 5 5 5 5 4 4 11 5 4 Protection 11 | . 11 14 14 14 21 13 6 7 20 16 16 16 10 11 14 16 13 8 5 5 9 10 6 7 7 6 Energy Cannon 5 | . . . . . 4 7 9 5 3 10 9 5 4 5 9 4 4 7 10 2 6 6 5 5 5 11 Ballistic Gun 5 | . 22 14 . 5 2 . 2 7 8 7 8 15 17 12 8 2 4 1 . . . 3 6 . . . Ballistic Cannon 4 | . 5 12 . 22 3 2 . 2 6 1 . . . . . 5 5 5 5 . 5 2 5 11 6 5 Launcher 1 | . . 1 . . 4 3 . 1 . . . . . 2 . 2 1 1 . . 3 1 . . 3 1 Naked Turns . | . . . . . . . . . . . . . . . . . . . . . . . . . . . Heaviest Build 308 | 15 51 93 88 98 111 120 116 131 157 157 147 166 161 166 217 209 198 207 202 205 205 212 191 207 308 267 Greatest Support 230 | 20 40 40 40 40 66 88 91 91 160 160 160 160 160 160 160 160 230 230 230 230 230 230 210 200 217 217 Greatest Overweight (x) 12 | . 3 2 2 9 5 1 1 12 1 . . 1 1 1 1 1 1 . . . . 1 1 1 1 2 Average Overweight (x) 1 | . 1 1 2 3 3 1 1 5 . . . . . 1 . 1 . . . . . . . . . . Largest Inventory Capacity 25 | 8 20 25 25 25 25 25 25 25 25 25 25 25 25 25 25 25 25 25 25 25 25 25 25 25 25 25 Average Capacity 24 | 8 18 23 25 25 25 25 25 25 25 25 25 25 25 25 25 25 25 25 25 25 25 25 25 25 25 25 Most Carried 25 | 7 20 23 25 25 25 25 25 25 25 25 25 25 25 25 25 25 25 25 25 25 25 25 25 25 25 25 Average Carried 24 | 6 16 20 24 24 24 24 24 24 24 24 23 24 25 24 24 24 23 24 25 24 24 24 24 24 24 21 Final Capacity 25 | 8 20 25 25 25 25 25 25 25 25 25 25 25 25 25 25 25 25 25 25 25 25 25 25 25 25 25 Final Carried 25 | 7 20 23 25 25 25 25 25 24 25 25 25 25 25 25 25 25 25 25 25 25 24 25 25 25 25 23 Class Distribution -------------------- 48% | Scavenger-Mutant 21% | Mutant 21% | Scavenger-Tank 3% | Scavenger-Gunner Dominant Class ---------------- Mutant | -10/Materials Mutant | -10/Mines Mutant | -10/Exiles Mutant | -9/Mines Scavenger-Mutant | -8/Materials Mutant | -7/Factory Scavenger-Assassin | -6/Factory Scavenger-Mutant | -6/Extension Scavenger-Tank | -6/Cetus Hacker-Mutant | -6/Archives Scavenger-Tank | -6/Hub_04(d) Scavenger-Tank | -5/Factory Scavenger-Mutant | -5/Upper Caves Scavenger-Mutant | -5/Upper Caves Scavenger-Mutant | -5/Warlord Scavenger-Mutant | -4/Proximity Caves Scavenger-Tank | -4/Factory Scavenger-Mutant | -4/Upper Caves Scavenger-Mutant | -4/Upper Caves Scavenger-Mutant | -4/Zhirov Scavenger-Tank | -3/Proximity Caves Scavenger-Tank | -3/Research Scavenger-Mutant | -3/Quarantine Scavenger-Mutant | -2/Research Scavenger-Mutant | -2/Testing Scavenger-Mutant | -1/Access Resources | -11 -10 -10 -10 -9 -8 -7 -6 -6 -6 -6 -6 -5 -5 -5 -5 -4 -4 -4 -4 -4 -3 -3 -3 -2 -2 -1 ----------- Run | Scr Mat Min Exi Min Mat Fac Fac Ext Cet Arc Hub Fac Upp Upp War Pro Fac Upp Upp Zhi Pro Res Qua Res Tes Acc Matter Collected 23901 | 270 437 220 163 618 913 1301 565 1557 290 270 756 777 243 192 189 413 1015 955 198 93 399 1849 1816 901 4942 2559 Remotely 9469 | . . . . . . 671 . 49 . . 343 . . . . . 113 . . . . 1571 1150 785 2955 1832 Salvage Created 33664 | 182 640 251 . 654 1765 2920 610 1259 193 400 1221 701 158 132 . 299 963 1439 149 414 735 2977 1423 260 7473 6446 Parts 1367 | 12 49 17 . 50 114 137 13 62 8 25 51 41 1 4 . 20 44 21 5 4 20 129 81 11 213 235 Haulers Intercepted 18 | . 1 . . . 4 3 2 . . . 3 . . . . . . . . . . 2 1 . 1 1 Recyclers Shooed 12 | . . . . 2 . 2 . 1 . . . 1 . . . . 2 . . . . . . . 1 3 Parts Field Recycled . | . . . . . . . . . . . . . . . . . . . . . . . . . . . Retrieved Matter . | . . . . . . . . . . . . . . . . . . . . . . . . . . . Parts Self-Destructed 70 | . . . . . . . . . . . . . 1 10 . 14 . 19 2 2 22 . . . . . Prevented 1 | . . . . . . . . . . . . . . . . . . . . . 1 . . . . . Kills | -11 -10 -10 -10 -9 -8 -7 -6 -6 -6 -6 -6 -5 -5 -5 -5 -4 -4 -4 -4 -4 -3 -3 -3 -2 -2 -1 ------- Run | Scr Mat Min Exi Min Mat Fac Fac Ext Cet Arc Hub Fac Upp Upp War Pro Fac Upp Upp Zhi Pro Res Qua Res Tes Acc Combat Hostiles Destroyed 644 | . 15 5 . 22 38 66 6 18 3 2 19 16 . 7 . 13 17 18 3 . 15 49 27 4 159 122 Guns 77 | . 9 2 . 4 11 . 3 6 2 1 6 13 . . . . 2 . . . . 11 7 . . . Cannons 231 | . 3 3 . 12 16 26 2 3 1 1 4 2 . 2 . 3 8 13 3 . 10 27 13 3 36 40 AOE 319 | . 3 . . 6 10 40 1 8 . . 9 . . 5 . 10 6 4 . . 4 11 7 . 121 74 Classes Destroyed 25 | 2 6 1 . 1 5 1 . 1 . . . . . . . . 1 . 1 . . . 3 . 3 . Worker 48 | . . 1 . . 3 10 1 2 . . 3 . . . . . 2 . . . . 3 4 . 8 11 Builder 46 | . 1 . . . 4 4 . 7 . . 2 . . . . . 1 . . . . 3 2 . 4 18 Tunneler 12 | 5 . . . 2 . 1 . 1 . . 1 . . . . . . . . . . 2 . . . . Hauler 18 | . 1 . . . 4 3 2 . . . 3 . . . . . . . . . . 2 1 . 1 1 Recycler 28 | 1 . 1 . 2 1 9 1 3 . . 1 . . . . . 2 . . . . 2 . . 2 3 Carrier 4 | . . . . . . . . . . . . . . . . . . . . . . . . . 2 2 Mechanic 23 | . . . . . 2 3 . . . . . . . . . . . . . . . 1 . . 9 8 Operator 11 | . 1 . . . . 1 . . . 8 . . . . . . . . . . . . . . 1 . Watcher 7 | . 1 . . . 3 . . . 1 . 1 . . . . . . . . . . . . . . 1 Swarmer 89 | . 3 3 . 10 4 9 . . . . 3 8 . 3 . 8 5 7 . . 5 9 3 . 5 4 Saboteur 10 | . . . . . . . . . . . . . . . . . . . . . . . 1 . 5 4 Grunt 265 | . 12 2 . 10 20 32 4 6 1 . 7 . . 4 . 4 5 5 . . 8 12 9 3 63 58 Brawler 26 | . . . . . 1 3 1 . . . 1 . . . . . . . . . . 3 1 . 8 8 Duelist 30 | . . . . . 3 4 . 1 . . . . . . . . 1 . . . . 1 1 . 8 11 Protector 18 | . . . . . 1 4 1 1 . . . . . . . . . . . . . . . . 6 5 Researcher 10 | . . . . . . . . . . . . . . . . . . . . . . . 1 . 9 . Sentry 41 | . . . . 2 6 8 . 5 . 2 2 2 . . . . 2 2 . . 1 2 . . 6 1 Hunter 55 | . . . . . 3 3 . 2 . . 2 . . . . 1 1 2 2 . 1 4 2 . 26 6 Programmer 75 | . . . . . . 3 . . . . 1 6 . . . . 2 2 . . . 16 3 1 25 16 Heavy 3 | . . . . . . . . . . . . . . . . . 1 . . . . 2 . . . . Behemoth 2 | . . . . . . . . 2 . . . . . . . . . . . . . . . . . . Cetus Guard 2 | . . . . . . . . . 2 . . . . . . . . . . . . . . . . . Quarantine Guard 6 | . . . . . . . . . . . . . . . . . . . . . . . 6 . . . Lightning 3 | . . . . . . . . . . . 3 . . . . . . . . . . . . . . . Investigator 4 | . . . . . . . . . . . . . . . . . . . . . . . . . 2 2 Striker 9 | . . . . . . . . . . . . . . . . . . . . . . . . . 4 5 Executioner 6 | . . . . . . . . . . . . . . . . . . . . . . . . . 2 4 Alpha 7 2 | . . . . . . . . . . . . . . . . . . . . . . . 1 . 1 . Thug 2 | . . 1 . . . . . 1 . . . . . . . . . . . . . . . . . . Guerrilla 1 | . . . . . . . . 1 . . . . . . . . . . . . . . . . . . Mutant 1 | . . . . . . . . . . . . . . . . . . . 1 . . . . . . . Best Kill Streak 51 | 4 3 3 . 5 17 14 4 14 3 3 7 3 . 7 . 7 7 5 2 . 5 12 11 3 32 51 Combat Bots Only 28 | . 3 3 . 4 5 11 4 6 2 1 5 3 . 7 . 7 5 5 2 . 5 10 10 3 27 28 Max Kills in Single Turn 16 | 1 2 1 . 3 3 5 1 4 1 1 7 2 . 2 . 3 5 3 1 . 3 2 4 1 9 16 Gunslinging 1 | . . . . . . . . . . . . 1 . . . . . . . . . . . . . . Exploded 10 | . 2 . . 3 3 5 1 3 . . 2 . . 2 . 3 5 3 . . 3 2 3 . 8 10 Melee . | . . . . . . . . . . . . . . . . . . . . . . . . . . . Uniques/NPCs Destroyed . | . . . . . . . . . . . . . . . . . . . . . . . . . . . Combat | -11 -10 -10 -10 -9 -8 -7 -6 -6 -6 -6 -6 -5 -5 -5 -5 -4 -4 -4 -4 -4 -3 -3 -3 -2 -2 -1 -------- Run | Scr Mat Min Exi Min Mat Fac Fac Ext Cet Arc Hub Fac Upp Upp War Pro Fac Upp Upp Zhi Pro Res Qua Res Tes Acc Damage Taken 50091 | . 600 96 . 412 1775 2417 1403 1372 453 46 3530 945 . 122 123 270 624 1179 116 . 356 4814 3467 472 13457 12042 Core 2527 | . 81 . . 43 199 168 9 125 . . 183 41 . . . 1 15 48 . . . 155 175 27 667 590 Absorbed by Shields 14643 | . . . . . . 204 . 352 37 43 . . . . 77 103 175 331 122 . 376 1571 445 . 6837 3970 Reduced by Siege Mode 2659 | . . . . . . . . . . . 135 6 . 9 . 16 27 94 11 . 18 730 393 27 709 484 Redirected to Shielding 60 | . 6 . . . . 28 2 . . . . . . . . . . . . . . . . . 24 . Regen/Repaired (Parts) 12908 | . . . . . . 168 . . 60 42 125 3274 . . . . . . . . . 404 438 . 5854 2543 Core Remaining (%) 72 | 100 . . . 50 63 76 . . . . 62 . . . . 95 . . . . 94 . 74 . 52 63 Volleys Fired 1476 | 10 64 22 . 40 102 147 27 64 10 54 76 76 16 12 10 21 35 80 8 11 30 145 75 10 174 157 Largest 5 | 2 2 2 . 2 2 2 2 3 3 3 3 4 1 3 2 3 3 3 3 1 3 4 4 4 4 5 Hottest 370 | 40 55 55 . 70 150 180 180 120 107 107 215 113 85 153 240 241 238 214 293 113 308 293 270 316 358 370 Shots Fired 2884 | 20 127 41 . 74 177 214 53 158 26 112 171 155 18 21 11 28 77 103 20 11 48 307 216 31 374 291 Gun 758 | 20 114 19 . 17 64 . 19 55 16 18 83 97 1 4 2 2 31 10 . . . 95 91 . . . Cannon 1799 | . 11 18 . 54 96 155 34 71 10 94 73 58 17 13 9 16 44 86 20 11 44 198 120 31 281 235 Launcher 327 | . 2 4 . 3 17 59 . 32 . . 15 . . 4 . 10 2 7 . . 4 14 5 . 93 56 Special . | . . . . . . . . . . . . . . . . . . . . . . . . . . . Kinetic 1322 | 20 125 37 . 71 67 34 19 85 24 32 83 97 1 4 1 7 53 36 8 . 12 125 123 14 172 72 Thermal 1169 | . . . . . 93 121 34 41 2 80 73 58 17 13 10 11 22 60 12 11 32 144 63 17 109 146 Explosive 302 | . 2 4 . 3 17 59 . 32 . . 15 . . 4 . 10 2 7 . . 4 14 5 . 82 42 Electromagnetic 42 | . . . . . . . . . . . . . . . . . . . . . . . . . 11 31 Entropic 49 | . . . . . . . . . . . . . . . . . . . . . . 24 25 . . . Robot Hit Streak 42 | 5 11 13 . 12 11 22 16 12 4 6 9 19 5 11 13 14 23 21 6 13 18 37 36 13 17 42 Robot Miss Streak 11 | 1 4 3 . 3 4 6 2 8 4 5 6 3 2 . . 1 2 2 2 . 3 3 2 1 3 11 Penetration Max 2 | . . . . . . . . 1 1 . 1 1 . . . . 1 . . . . 1 2 . . . Secondary Targets 4 | . 1 . . 1 . . . . . . . 2 . . . . . . . . . . . . . . Max Gunslinging Chain 1 | . 1 . . 1 . . . . . . . 1 . . . . . . . . . . . . . . Shots Hit Robots 1758 | 15 79 25 . 45 118 138 38 86 13 60 94 69 8 6 2 9 54 58 12 11 30 178 149 17 244 200 Core Hits 1729 | 7 32 10 . 28 119 200 13 92 8 21 76 26 2 15 . 24 33 34 7 4 26 129 81 8 438 296 Critical Kills 39 | . 1 . . . 1 . 1 2 . 1 1 6 . . . . 3 2 . 1 1 5 7 1 3 3 Critical Parts Destroyed 42 | . . . . . . . . 11 . 2 1 5 . . 1 . 1 1 . . . 8 12 . . . Critical Strikes 125 | . 1 1 . 1 4 . 1 13 . 3 2 12 . . 1 1 8 5 . 1 2 20 30 2 12 5 Burn 3 | . . . . . 3 . . . . . . . . . . . . . . . . . . . . . Meltdown 17 | . . . . . 1 . 1 1 . . . 1 . . . . 1 2 . 1 1 1 . 1 3 3 Destroy 71 | . 1 . . . . . . 12 . 3 2 11 . . 1 . 5 1 . . . 14 21 . . . Blast 25 | . . 1 . 1 . . . . . . . . . . . 1 2 2 . . 1 2 3 1 9 2 Sunder 9 | . . . . . . . . . . . . . . . . . . . . . . 3 6 . . . Melee Attacks 25 | . . . . . . 8 13 4 . . . . . . . . . . . . . . . . . . Impact 25 | . . . . . . 8 13 4 . . . . . . . . . . . . . . . . . . Slashing . | . . . . . . . . . . . . . . . . . . . . . . . . . . . Piercing . | . . . . . . . . . . . . . . . . . . . . . . . . . . . Sneak Attacks 3 | . . . . . . 2 1 . . . . . . . . . . . . . . . . . . . Combat Hostiles . | . . . . . . . . . . . . . . . . . . . . . . . . . . . Follow-up Attacks . | . . . . . . . . . . . . . . . . . . . . . . . . . . . Damage Inflicted 144984 | 176 1269 458 . 1042 4595 10168 1427 4719 430 1596 5476 1591 189 858 7 1343 3268 3192 525 465 2164 10212 6123 898 40724 42069 Guns 10593 | 176 945 199 . 170 742 . 330 940 306 299 968 1262 . . 7 . 647 203 . . . 2148 1251 . . . Cannons 45954 | . 124 259 . 585 1707 2851 890 1222 124 1297 2023 308 189 133 . 313 1923 2296 503 465 1634 6236 3685 887 8037 8263 Explosions 87834 | . 199 . . 284 2146 7117 . 2518 . . 2485 . . 725 . 1030 698 693 . . 530 1786 1158 . 32659 33806 Melee 414 | . . . . . . 168 207 39 . . . . . . . . . . . . . . . . . . Ramming 189 | . 1 . . 3 . 32 . . . . . 21 . . . . . . 22 . . 42 29 11 28 . Kinetic 26940 | 176 1069 458 . 755 870 513 330 1397 403 442 968 1262 . . 7 195 2027 1571 291 . 769 3938 2267 391 4757 2084 Thermal 44024 | . . . . . 1579 2423 890 765 27 1154 2023 308 189 133 . 161 543 928 212 465 865 3126 1460 496 3958 22319 Explosive 66282 | . 199 . . 284 2146 7032 . 2518 . . 1606 . . 725 . 987 698 693 . . 530 1684 1158 . 31167 14855 Electromagnetic 4504 | . . . . . . . . . . . 879 . . . . . . . . . . . . . 814 2811 Impact 414 | . . . . . . 168 207 39 . . . . . . . . . . . . . . . . . . Slashing . | . . . . . . . . . . . . . . . . . . . . . . . . . . . Piercing . | . . . . . . . . . . . . . . . . . . . . . . . . . . . Entropic 2631 | . . . . . . . . . . . . . . . . . . . . . . 1422 1209 . . . Highest Corruption 36 | . 2 2 2 2 . 1 2 2 2 2 34 5 5 5 5 . . 1 1 1 1 26 34 . 30 36 Average Corruption 6 | . 2 2 2 2 . 1 1 2 2 1 8 3 5 5 5 . . 1 1 1 1 17 30 . 20 12 Corruption Purged 2 | . . . . . . . . . . 2 . . . . . . . . . . . . . . . . Corruption Blocked 41 | . . . . . . . . . . . . . . . . . . . . . . . . 41 . . Effects 548 | . 22 13 9 18 . 20 3 24 6 1 13 24 32 38 3 . . 12 13 2 10 55 104 . 106 20 Message Errors 123 | . 5 5 2 5 . 5 1 6 1 . 5 8 9 13 . . . 1 3 1 2 13 11 . 25 2 Matter Fused 131 | . 9 1 1 6 . 5 . 4 . . 3 7 6 10 1 . . 4 5 1 4 8 27 . 26 3 Heat Flow Errors 72 | . 3 3 2 3 . 2 1 2 1 1 1 3 5 5 . . . 4 2 . 2 4 8 . 17 3 Energy Discharges 51 | . 1 . 1 2 . 3 . 2 2 . . 1 4 4 1 . . . . . 1 4 15 . 6 4 Parts Rejected 6 | . . . . . . . . . . . 1 . . . . . . . . . . . 2 . 2 1 Data Loss (minor) 59 | . 2 2 2 . . 2 . 6 1 . 2 2 5 2 . . . 1 1 . 1 8 13 . 6 3 Data Loss (major) 23 | . 1 1 . 2 . 2 . . . . . 1 . 1 . . . . . . . 3 7 . 5 . Misfires 25 | . 1 1 . . . . . 4 . . 1 . 2 2 . . . 1 2 . . 2 3 . 5 1 Alerts 16 | . . . 1 . . . . . 1 . . 1 1 1 1 . . 1 . . . 1 6 . 2 . Misdirections 2 | . . . . . . . . . . . . . . . . . . . . . . 2 . . . . Weapon Failures 40 | . . . . . . 1 1 . . . . 1 . . . . . . . . . 10 12 . 12 3 Overload Shots 77 | . . . . . . 16 16 4 . . 40 . . . 1 . . . . . . . . . . . Effects 7 | . . . . . . . . 2 . . 5 . . . . . . . . . . . . . . . Energy Bleed 2 | . . . . . . . . . . . 2 . . . . . . . . . . . . . . . Heat Surge 4 | . . . . . . . . 2 . . 2 . . . . . . . . . . . . . . . Short Circuit 1 | . . . . . . . . . . . 1 . . . . . . . . . . . . . . . Overflow Damage 5894 | . 31 . . 10 5 404 84 2 . 138 203 . 18 . . 61 82 346 38 . 78 216 119 13 1545 2501 Projectiles 1785 | . . . . 2 5 43 6 2 . 138 115 . 18 . . . 82 333 20 . 78 192 107 13 345 286 Explosions 3961 | . 31 . . 8 . 309 . . . . 88 . . . . 61 . 13 . . . 24 12 . 1200 2215 Melee 148 | . . . . . . 52 78 . . . . . . . . . . . 18 . . . . . . . Knockbacks 126 | . 1 . . 4 21 13 . 6 . 1 . . . . . . 5 5 . . 2 6 2 4 41 15 Impact . | . . . . . . . . . . . . . . . . . . . . . . . . . . . Kinetic 108 | . 1 . . 4 14 12 . 4 . 1 . . . . . . 5 5 . . 1 5 2 4 37 13 Secondary 18 | . . . . . 7 1 . 2 . . . . . . . . . . . . 1 1 . . 4 2 Self-Inflicted Damage 3259 | . . 1 . 30 140 313 . . . . 297 . . 54 . 4 . . . . . 23 36 . 1012 1349 Shots 45 | . . 1 . 1 4 8 . . . . 7 . . 1 . 1 . . . . . 1 1 . 14 6 Rammed 16 | . 1 . . 1 . 2 . . . . . 3 . . . . . . 1 . . 1 3 1 3 . Targets Rammed 19 | . 1 . . 1 . 4 . . . . . 3 . . . . . . 1 . . 1 4 1 3 . Kicked . | . . . . . . . . . . . . . . . . . . . . . . . . . . . Crushed 3 | . . . . . . 2 . . . . . . . . . . . . . . . . 1 . . . Highest Temperature 496 | 6 238 281 253 248 282 165 218 401 88 150 431 355 329 262 245 204 463 231 284 28 284 421 496 195 352 407 Average Temperature 98 | 6 103 82 105 64 96 39 61 72 34 84 181 82 123 98 123 63 100 106 137 11 94 107 106 102 109 100 Received Heat Transfer 5506 | . 309 18 . 93 603 659 334 363 61 . 615 9 . 27 . 24 57 39 26 . 21 208 174 90 719 1057 Effects 32 | . . . . . 3 . . 1 . . 7 1 3 . . . 1 3 . . . 3 3 . 4 3 Shutdowns 7 | . . . . . . . . 1 . . 2 . . . . . 1 . . . . 1 2 . . . Energy Bleed 6 | . . . . . . . . . . . 2 . 1 . . . . . . . . 1 1 . 1 . Interference 13 | . . . . . 3 . . . . . . . 2 . . . . 3 . . . . . . 2 3 Matter Decay 1 | . . . . . . . . . . . . 1 . . . . . . . . . . . . . . Short Circuit 4 | . . . . . . . . . . . 2 . . . . . . . . . . 1 . . 1 . Damage (minor) 1 | . . . . . . . . . . . 1 . . . . . . . . . . . . . . . Siege Activations 68 | . . . . . . . . . . . 2 3 . 1 . 4 5 7 1 . 4 10 11 1 14 5 Total Turns 1620 | . . . . . . . . . . . 78 34 . 18 . 50 76 104 13 . 59 280 218 14 409 267 Longest Duration 102 | . . . . . . . . . . . 59 16 . 18 . 23 31 41 13 . 37 79 42 14 87 102 Robots Corrupted 5 | . . . . . . . . . . . . . . . . . . . . . . . . . . 5 Combat Hostiles 5 | . . . . . . . . . . . . . . . . . . . . . . . . . . 5 Parts Fried 16 | . . . . . . . . . . . 3 . . . . . . . . . . . . . . 13 Impact Corruptions 4 | . . . . . . 1 2 . . . . . . . . . . . 1 . . . . . . . Robots Melted 17 | . . . . . 1 . 1 1 . . . 1 . . . . 1 2 . 1 1 1 . 1 3 3 Combat Hostiles 13 | . . . . . 1 . . 1 . . . 1 . . . . 1 1 . 1 1 . . 1 2 3 Parts Melted 32 | . . . . . 3 3 2 1 . 5 . 4 . . . . 1 1 . . 1 . . 1 2 8 Heat Transferred 27786 | . . . . . 2944 3228 957 970 37 1591 1960 370 259 148 . 191 518 1073 235 351 814 1654 999 407 3536 5544 Parts Sabotaged 15 | . . . . . . . . . . . . . . . . . . . . . . 4 . . 8 3 Parts Stolen . | . . . . . . . . . . . . . . . . . . . . . . . . . . . Parts Stripped . | . . . . . . . . . . . . . . . . . . . . . . . . . . . Power Chain Reactions 9 | . . . . . . . . . . . . . . . . . . . . . . 1 . . 7 1 Missiles Intercepted . | . . . . . . . . . . . . . . . . . . . . . . . . . . . Alert | -11 -10 -10 -10 -9 -8 -7 -6 -6 -6 -6 -6 -5 -5 -5 -5 -4 -4 -4 -4 -4 -3 -3 -3 -2 -2 -1 ------- Run | Scr Mat Min Exi Min Mat Fac Fac Ext Cet Arc Hub Fac Upp Upp War Pro Fac Upp Upp Zhi Pro Res Qua Res Tes Acc Peak Influence 7831 | 30 223 95 . 281 1033 2315 1134 1372 1101 668 1224 625 . . . . 510 . . . . 1334 1432 777 5632 7831 Initial 3372 | . 19 10 . . 76 469 1134 483 768 360 163 606 . . . . 16 . . . . . 722 771 297 3372 Average 1110 | 14 87 24 . 110 674 928 990 686 858 580 580 427 . . . . 233 . . . . 378 1129 628 3665 5126 Maximum Alert Level 5 | . 1 . . 1 3 5 4 4 4 2 4 2 . . . . 2 . . . . 4 4 3 5 5 Low Security (%) 23 | 100 96 100 . 87 14 . . . . . 19 4 . . . . 43 . . . . 54 . . . . Level 1 10 | . 3 . . 12 10 22 . 5 . 1 11 28 . . . . 39 . . . . 8 . . 9 . Level 2 21 | . . . . . 17 29 . 57 . 98 21 67 . . . . 16 . . . . 9 . 63 1 . Level 3 20 | . . . . . 57 17 91 25 95 . 44 . . . . . . . . . . 16 41 36 11 . Level 4 7 | . . . . . . 6 8 11 4 . 1 . . . . . . . . . . 10 58 . 4 . Level 5 2 | . . . . . . 16 . . . . . . . . . . . . . . . . . . . 7 High Security 13 | . . . . . . 7 . . . . . . . . . . . . . . . . . . 72 92 Max Security . | . . . . . . . . . . . . . . . . . . . . . . . . . . . Sterilizations 2 | . . . . . . . . . . . . . . . . . . . . . . . . . 1 1 Squads Dispatched 155 | . 3 . . . 7 26 3 7 . . 5 3 . 1 . . 5 . . . . 7 5 1 45 37 Investigation 13 | . 3 . . . 1 1 1 2 . . 3 . . 1 . . . . . . . . 1 . . . Extermination 13 | . . . . . . 3 . . . . 1 2 . . . . 1 . . . . 4 1 . 1 . Reinforcement 28 | . . . . . 3 5 . 2 . . 1 1 . . . . 1 . . . . 2 2 1 8 2 Assault 88 | . . . . . 3 13 2 3 . . . . . . . . . . . . . 1 1 . 33 32 Garrison 13 | . . . . . . 4 . . . . . . . . . . 3 . . . . . . . 3 3 Intercept . | . . . . . . . . . . . . . . . . . . . . . . . . . . . Searches Triggered . | . . . . . . . . . . . . . . . . . . . . . . . . . . . Construction Impeded 11 | . . . . . 1 3 . 2 . . 1 . . . . . . . . . . . . . 2 2 Haulers Reinforced 1 | . . . . . . 1 . . . . . . . . . . . . . . . . . . . . Active Scanning Responses 1 | . . . . . . . . . . . . . . . . . . . . . . . 1 . . . Cargo Convoy Interrupts . | . . . . . . . . . . . . . . . . . . . . . . . . . . . Stealth | -11 -10 -10 -10 -9 -8 -7 -6 -6 -6 -6 -6 -5 -5 -5 -5 -4 -4 -4 -4 -4 -3 -3 -3 -2 -2 -1 --------- Run | Scr Mat Min Exi Min Mat Fac Fac Ext Cet Arc Hub Fac Upp Upp War Pro Fac Upp Upp Zhi Pro Res Qua Res Tes Acc Distress Signals 28 | . 2 . . 2 3 3 . 2 2 . 4 . . . 2 . . . . . . 1 . 3 1 3 Communications Jammed 15 | . . . . . . . . . . . . . . . . . . . . . . 11 3 . 1 . Distress Signals 14 | . . . . . . . . . . . . . . . . . . . . . . 11 2 . 1 . Times Spotted 935 | . 30 5 . 24 49 78 16 50 15 26 31 23 . 5 7 9 14 17 3 . 17 53 30 19 224 190 Peak Tracking Total 26 | . 4 3 . 4 6 11 7 7 5 2 7 5 . 5 5 4 5 5 2 . 5 9 8 6 26 18 Tactical Retreats 23 | . 2 . . 1 1 1 2 2 . . 3 2 . . . . . . . . 1 2 . . 3 3 Traps | -11 -10 -10 -10 -9 -8 -7 -6 -6 -6 -6 -6 -5 -5 -5 -5 -4 -4 -4 -4 -4 -3 -3 -3 -2 -2 -1 ------- Run | Scr Mat Min Exi Min Mat Fac Fac Ext Cet Arc Hub Fac Upp Upp War Pro Fac Upp Upp Zhi Pro Res Qua Res Tes Acc Traps Triggered 14 | . 3 . . . 1 1 . 1 . . . 2 . . 1 . . . . . . 1 2 . 2 . Indirectly . | . . . . . . . . . . . . . . . . . . . . . . . . . . . Trap Hack Attempts . | . . . . . . . . . . . . . . . . . . . . . . . . . . . Triggered . | . . . . . . . . . . . . . . . . . . . . . . . . . . . Disarmed . | . . . . . . . . . . . . . . . . . . . . . . . . . . . Reprogrammed . | . . . . . . . . . . . . . . . . . . . . . . . . . . . Reused . | . . . . . . . . . . . . . . . . . . . . . . . . . . . Traps Extracted . | . . . . . . . . . . . . . . . . . . . . . . . . . . . Installed . | . . . . . . . . . . . . . . . . . . . . . . . . . . . Triggered 13 | . . . . . . . . . . . . . . . 9 . . 2 . . 2 . . . . . Exploded 1 | . . . . 1 . . . . . . . . . . . . . . . . . . . . . . Machines | -11 -10 -10 -10 -9 -8 -7 -6 -6 -6 -6 -6 -5 -5 -5 -5 -4 -4 -4 -4 -4 -3 -3 -3 -2 -2 -1 ---------- Run | Scr Mat Min Exi Min Mat Fac Fac Ext Cet Arc Hub Fac Upp Upp War Pro Fac Upp Upp Zhi Pro Res Qua Res Tes Acc Machines Disabled 103 | . . 1 . 1 5 18 . 2 2 5 16 2 . 1 . 4 4 2 1 . 2 . 9 . 22 6 Max in Single Turn 11 | . . 1 . 1 1 5 . 2 . 1 11 2 . 1 . 4 3 2 1 . 1 . 1 . 2 2 Garrison Access 7 | . . . . . 1 2 . . . . . 2 . . . . . . . . . . 1 1 . . Network Hub 2 | . . . . . . . . . . . 2 . . . . . . . . . . . . . . . Machines Sabotaged 1 | . . . . . . . . . . . 1 . . . . . . . . . . . . . . . Garrisons Compromised . | . . . . . . . . . . . . . . . . . . . . . . . . . . . Overloaded Fab Kills . | . . . . . . . . . . . . . . . . . . . . . . . . . . . Hacking | -11 -10 -10 -10 -9 -8 -7 -6 -6 -6 -6 -6 -5 -5 -5 -5 -4 -4 -4 -4 -4 -3 -3 -3 -2 -2 -1 --------- Run | Scr Mat Min Exi Min Mat Fac Fac Ext Cet Arc Hub Fac Upp Upp War Pro Fac Upp Upp Zhi Pro Res Qua Res Tes Acc Machines Accessed 84 | . 11 1 1 . 6 10 6 7 2 . 3 10 1 2 1 . . 1 1 4 1 5 10 . 1 . Terminals 48 | . 8 . . . 5 2 3 7 2 . 3 4 1 1 . . . . . . 1 3 7 . 1 . Fabricators 4 | . . . . . . 2 . . . . . 2 . . . . . . . . . . . . . . Repair Stations 11 | . 1 . . . . 1 3 . . . . 2 . . . . . . . . . 2 2 . . . Recycling Units 4 | . 2 . . . . 2 . . . . . . . . . . . . . . . . . . . . Scanalyzers 1 | . . . . . . 1 . . . . . . . . . . . . . . . . . . . . Garrison Access 6 | . . . . . 1 2 . . . . . 2 . . . . . . . . . . 1 . . . Total Hacks 268 | . 29 1 23 . 22 26 12 15 3 . 5 56 1 8 1 . . 1 1 17 5 16 25 . 1 . Successful 142 | . 12 1 23 . 8 10 7 3 2 . 4 27 1 8 1 . . 1 1 17 5 4 6 . 1 . Failed 125 | . 17 . . . 14 16 5 12 1 . 1 28 . . . . . . . . . 12 19 . . . Catastrophic 29 | . 2 . . . 4 3 1 3 . . . 4 . . . . . . . . . 3 9 . . . Database Lockouts 1 | . . . . . . . . . . . . 1 . . . . . . . . . . . . . . Manual 70 | . 18 . . . 8 5 4 5 1 . 5 19 . . . . . . . . . 2 3 . . . Terminals 121 | . 23 . . . 19 5 6 15 3 . 5 14 1 7 . . . . . . 5 4 13 . 1 . Fabricators 20 | . . . . . . 7 . . . . . 13 . . . . . . . . . . . . . . Repair Stations 58 | . 3 . . . . 4 6 . . . . 25 . . . . . . . . . 12 8 . . . Recycling Units 7 | . 3 . . . . 4 . . . . . . . . . . . . . . . . . . . . Scanalyzers 2 | . . . . . . 2 . . . . . . . . . . . . . . . . . . . . Garrison Access 15 | . . . . . 3 4 . . . . . 4 . . . . . . . . . . 4 . . . Terminal Hacks 97 | . 9 1 23 . 8 1 4 3 2 . 1 6 1 8 1 . . 1 1 17 5 1 3 . 1 . Record 43 | . . . 23 . . . . . 1 . . . 1 7 . . . . . 5 5 . 1 . . . Part Schematic 4 | . . . . . . . . . . . . . . . . . . . . 4 . . . . . . Robot Analysis 13 | . 6 . . . 1 1 . . . . . 1 . . . . . . . 4 . . . . . . Prototype ID Bank 12 | . 2 . . . 4 . 1 . . . . . . . . . . . . 4 . . 1 . . . Open Door 13 | . . 1 . . . . 1 3 1 . . . . 1 1 . . 1 1 . . 1 1 . 1 . Level Access Points 2 | . . . . . 1 . . . . . 1 . . . . . . . . . . . . . . . Branch Access Points 2 | . . . . . . . 1 . . . . 1 . . . . . . . . . . . . . . Terminal Index 1 | . . . . . 1 . . . . . . . . . . . . . . . . . . . . . Recycling Unit Index 1 | . . . . . . . . . . . . 1 . . . . . . . . . . . . . . Unreport Threat 2 | . . . . . . . 1 . . . . 1 . . . . . . . . . . . . . . Transport Status 1 | . . . . . . . . . . . . 1 . . . . . . . . . . . . . . Hauler Manifests 3 | . 1 . . . 1 . . . . . . 1 . . . . . . . . . . . . . . Fabricator Hacks 2 | . . . . . . 1 . . . . . 1 . . . . . . . . . . . . . . Network Status 2 | . . . . . . 1 . . . . . 1 . . . . . . . . . . . . . . Repair Station Hacks 28 | . 1 . . . . 4 3 . . . . 15 . . . . . . . . . 3 2 . . . Scan Component 17 | . 1 . . . . 2 3 . . . . 8 . . . . . . . . . 2 1 . . . Repair 11 | . . . . . . 2 . . . . . 7 . . . . . . . . . 1 1 . . . Recycling Unit Hacks 2 | . 2 . . . . . . . . . . . . . . . . . . . . . . . . . Retrieve Components 2 | . 2 . . . . . . . . . . . . . . . . . . . . . . . . . Scanalyzer 2 | . . . . . . 2 . . . . . . . . . . . . . . . . . . . . Insert Component 2 | . . . . . . 2 . . . . . . . . . . . . . . . . . . . . Garrison Access Hacks 3 | . . . . . . . . . . . . 2 . . . . . . . . . . 1 . . . Seal Access 3 | . . . . . . . . . . . . 2 . . . . . . . . . . 1 . . . Unauthorized Hacks 8 | . . . . . . 2 . . . . 3 3 . . . . . . . . . . . . . . Terminals 3 | . . . . . . . . . . . 3 . . . . . . . . . . . . . . . Sabotage 3 | . . . . . . . . . . . 3 . . . . . . . . . . . . . . . Fabricators 5 | . . . . . . 2 . . . . . 3 . . . . . . . . . . . . . . Liberate 1 | . . . . . . . . . . . . 1 . . . . . . . . . . . . . . Fabnet 3 | . . . . . . 1 . . . . . 2 . . . . . . . . . . . . . . Haulers 1 | . . . . . . 1 . . . . . . . . . . . . . . . . . . . . Repair Stations . | . . . . . . . . . . . . . . . . . . . . . . . . . . . Recycling Units . | . . . . . . . . . . . . . . . . . . . . . . . . . . . Scanalyzers . | . . . . . . . . . . . . . . . . . . . . . . . . . . . Garrison Access . | . . . . . . . . . . . . . . . . . . . . . . . . . . . Data Cores Recovered 1 | . 1 . . . . . . . . . . . . . . . . . . . . . . . . . Used 1 | . 1 . . . . . . . . . . . . . . . . . . . . . . . . . Hacking Detections 54 | . 10 . . . 6 9 5 4 1 . . 7 . 1 . . . . . . 1 3 7 . . . Full Trace Events 10 | . 3 . . . 2 1 1 2 . . . . . 1 . . . . . . . . . . . . Feedback Events . | . . . . . . . . . . . . . . . . . . . . . . . . . . . Feedback Blocked . | . . . . . . . . . . . . . . . . . . . . . . . . . . . Robot Schematics Acquired 4 | . . . . . . . . . . . . . . . . . . . . . . . . . 4 . Robots Built . | . . . . . . . . . . . . . . . . . . . . . . . . . . . Authchips . | . . . . . . . . . . . . . . . . . . . . . . . . . . . Time . | . . . . . . . . . . . . . . . . . . . . . . . . . . . Total Robot Build Rating . | . . . . . . . . . . . . . . . . . . . . . . . . . . . Part Schematics Acquired 7 | . . . . . . . . . . . . . . . . . . . . 4 . . . . 3 . Parts Built . | . . . . . . . . . . . . . . . . . . . . . . . . . . . Authchips . | . . . . . . . . . . . . . . . . . . . . . . . . . . . Time . | . . . . . . . . . . . . . . . . . . . . . . . . . . . Total Part Build Rating . | . . . . . . . . . . . . . . . . . . . . . . . . . . . Parts Repaired 11 | . . . . . . 2 . . . . . 7 . . . . . . . . . 1 1 . . . Time 751 | . . . . . . 76 . . . . . 590 . . . . . . . . . 54 31 . . . Parts Recycled . | . . . . . . . . . . . . . . . . . . . . . . . . . . . Recycled Matter . | . . . . . . . . . . . . . . . . . . . . . . . . . . . Retrieved Matter . | . . . . . . . . . . . . . . . . . . . . . . . . . . . Retrieved Components 13 | . 13 . . . . . . . . . . . . . . . . . . . . . . . . . Parts Scanalyzed . | . . . . . . . . . . . . . . . . . . . . . . . . . . . Part Schematics Acquired . | . . . . . . . . . . . . . . . . . . . . . . . . . . . Parts Damaged . | . . . . . . . . . . . . . . . . . . . . . . . . . . . Bothacking | -11 -10 -10 -10 -9 -8 -7 -6 -6 -6 -6 -6 -5 -5 -5 -5 -4 -4 -4 -4 -4 -3 -3 -3 -2 -2 -1 ------------ Run | Scr Mat Min Exi Min Mat Fac Fac Ext Cet Arc Hub Fac Upp Upp War Pro Fac Upp Upp Zhi Pro Res Qua Res Tes Acc Used RIF Installer . | . . . . . . . . . . . . . . . . . . . . . . . . . . . Robots Hacked 3 | . . . . . . . . . . . . . . . . . 1 1 . . 1 . . . . . Non-combat . | . . . . . . . . . . . . . . . . . . . . . . . . . . . Combat 3 | . . . . . . . . . . . . . . . . . 1 1 . . 1 . . . . . Robot Hacks Applied . | . . . . . . . . . . . . . . . . . . . . . . . . . . . Relay Couplers Released 10 | . . . . . 1 3 . . . . . . . . . . . . . . . . 2 4 . . Machine Destruction 7 | . . . . . 1 3 . . . . . . . . . . . . . . . . 2 1 . . Programmers 3 | . . . . . . . . . . . . . . . . . . . . . . . . 3 . . Fabnet Peak Effective % 6 | . . . . . . . . . . . . . . . . 6 6 6 6 6 2 2 2 . . . Autooverrided 3 | . . . . . . . . . . . . . . . . . 1 1 . . 1 . . . . . Robots Rewired 27 | . . . . . . . . 20 . . . . . . 3 . . . 4 . . . . . . . Allies Hacked . | . . . . . . . . . . . . . . . . . . . . . . . . . . . Hacks Repelled . | . . . . . . . . . . . . . . . . . . . . . . . . . . . Allies | -11 -10 -10 -10 -9 -8 -7 -6 -6 -6 -6 -6 -5 -5 -5 -5 -4 -4 -4 -4 -4 -3 -3 -3 -2 -2 -1 -------- Run | Scr Mat Min Exi Min Mat Fac Fac Ext Cet Arc Hub Fac Upp Upp War Pro Fac Upp Upp Zhi Pro Res Qua Res Tes Acc Total Allies 51 | . . . . . . . 1 29 5 . . 3 . . 3 . 1 1 4 . 1 . . . . 3 Largest Group 15 | . . . . . . . 1 15 12 2 2 3 . . 3 . 1 . 4 4 4 . . . . 3 Highest-Rated Group 630 | . . . . . . . 19 538 630 192 192 87 . . 135 . 56 . 184 184 184 . . . . 374 Highest-Rated Ally 159 | . . . . . . . 19 159 159 96 96 29 . . 46 . 56 . 46 46 47 . . . . 131 Total Orders 8 | . . . . . . . 1 1 . . . . . . 2 . . . . 1 . . . 1 2 . STAY 3 | . . . . . . . . . . . . . . . 2 . . . . 1 . . . . . . EXPLORE 3 | . . . . . . . . . . . . . . . . . . . . . . . . 1 2 . RETURN 2 | . . . . . . . 1 1 . . . . . . . . . . . . . . . . . . Ally Attacks 473 | . . . . . . . 17 240 95 12 24 26 . . 15 . 1 . . . 16 . . . . 27 Total Damage 11413 | . . . . . . . 91 5314 2840 420 865 342 . . 284 . 50 . . . 487 . . . . 720 Kills 75 | . . . . . . . . 36 16 2 7 1 . . 3 . . . . . 1 . . . . 9 Allies Corrupted 3 | . . . . . . . . 1 . . 2 . . . . . . . . . . . . . . . Allies Melted 3 | . . . . . . . . . . . . . . . 3 . . . . . . . . . . . Intel | -11 -10 -10 -10 -9 -8 -7 -6 -6 -6 -6 -6 -5 -5 -5 -5 -4 -4 -4 -4 -4 -3 -3 -3 -2 -2 -1 ------- Run | Scr Mat Min Exi Min Mat Fac Fac Ext Cet Arc Hub Fac Upp Upp War Pro Fac Upp Upp Zhi Pro Res Qua Res Tes Acc Robot Analysis Total 13 | . 6 . . . 1 1 . . . . . 1 . . . . . . . 4 . . . . . . Derelict Logs Recovered 8 | . . 1 . 1 . . . . . . . . 1 1 . 1 . 2 1 . . . . . . . Drone Launches 29 | . . . . . . . 19 6 . . . . . . . . . . . . . . . 2 2 . Drone Recoveries 22 | . . . . . . . 18 3 . . . . . . . . . . . . . . . 1 . . Exploration | -11 -10 -10 -10 -9 -8 -7 -6 -6 -6 -6 -6 -5 -5 -5 -5 -4 -4 -4 -4 -4 -3 -3 -3 -2 -2 -1 ------------- Run | Scr Mat Min Exi Min Mat Fac Fac Ext Cet Arc Hub Fac Upp Upp War Pro Fac Upp Upp Zhi Pro Res Qua Res Tes Acc Turns Passed 36433 | 78 1611 1026 727 1682 1543 2723 759 1881 523 521 527 2204 1307 1852 1778 1649 696 1926 1236 327 1292 1708 1920 1105 2904 928 Spaces Moved 13782 | 12 705 324 225 649 478 780 258 583 204 196 170 656 681 757 699 638 277 1000 687 171 701 608 719 558 894 152 Core . | . . . . . . . . . . . . . . . . . . . . . . . . . . . Treads 12252 | . 256 324 225 175 132 780 258 334 204 196 170 656 681 757 699 638 277 1000 687 171 701 608 719 558 894 152 Legs 114 | 12 102 . . . . . . . . . . . . . . . . . . . . . . . . . Wheels 1416 | . 347 . . 474 346 . . 249 . . . . . . . . . . . . . . . . . . Hover . | . . . . . . . . . . . . . . . . . . . . . . . . . . . Flight . | . . . . . . . . . . . . . . . . . . . . . . . . . . . Fastest Speed 115 | 120 115 240 320 140 140 231 242 230 160 160 160 160 160 240 160 240 165 166 166 166 166 166 157 157 162 162 Average Speed 204 | 120 179 295 320 188 176 232 243 248 220 160 160 197 184 240 238 240 184 166 166 166 166 173 194 184 228 240 Slowest Speed 465 | 120 240 320 320 320 465 245 245 320 240 160 160 240 240 240 240 240 240 166 166 166 166 253 255 249 250 330 Overloaded Moves . | . . . . . . . . . . . . . . . . . . . . . . . . . . . Propulsion Burnouts . | . . . . . . . . . . . . . . . . . . . . . . . . . . . Robots Hopped . | . . . . . . . . . . . . . . . . . . . . . . . . . . . Cave-ins Triggered 2 | . . . . . . . 1 . . . . . . . . . . . . . . . . . . 1 Exploration Rate (%) 58 | 2 98 70 62 98 48 20 10 84 79 84 21 17 74 81 88 85 11 97 88 60 78 25 78 26 94 9 Regions Visited 26 Branch Regions 17 Pre-discovered Areas 5 | . . . 1 . . . . . . . . . . . . . . . 1 3 . . . . . . Known Exits Taken 9 | . . . . . 1 . 1 . . . 1 1 1 . . 1 1 . . . . . 1 1 . . Unknown Exits Taken 17 | 1 1 1 1 1 . 1 . 1 1 1 . . . 1 1 . . 1 1 1 1 1 . . 1 . Scrap Searched 19 | . . 1 . 2 . . . . . . . . 2 3 . 1 . 3 4 . 3 . . . . . Spaces Dug 200 | . . . . . . 21 8 17 . . 4 12 3 10 2 6 6 22 . . 5 54 19 3 6 2 Terrain Destroyed 3363 | . 15 32 . 19 166 378 12 129 5 16 288 51 7 40 3 80 41 95 8 . 45 182 80 10 975 686 Melee 13 | . . . . . . 4 7 2 . . . . . . . . . . . . . . . . . . Projectile 442 | . . . . . 9 4 5 8 5 16 22 51 7 8 3 10 18 38 8 . 10 82 28 10 63 37 AOE 2904 | . 15 32 . 19 157 370 . 119 . . 266 . . 32 . 69 23 57 . . 35 100 49 . 912 649 Terrain Rammed . | . . . . . . . . . . . . . . . . . . . . . . . . . . . Walls Destroyed . | . . . . . . . . . . . . . . . . . . . . . . . . . . . Machines Disabled . | . . . . . . . . . . . . . . . . . . . . . . . . . . . Actions | -11 -10 -10 -10 -9 -8 -7 -6 -6 -6 -6 -6 -5 -5 -5 -5 -4 -4 -4 -4 -4 -3 -3 -3 -2 -2 -1 --------- Run | Scr Mat Min Exi Min Mat Fac Fac Ext Cet Arc Hub Fac Upp Upp War Pro Fac Upp Upp Zhi Pro Res Qua Res Tes Acc Total 19556 | 55 928 357 238 1031 1026 1450 328 920 265 301 295 1468 720 782 809 723 399 1166 768 205 783 988 1080 610 1412 449 Wait 2719 | 32 115 . . 314 328 420 6 26 5 27 16 702 10 5 25 50 52 57 9 . 45 132 140 3 152 48 Move 13754 | 11 704 323 224 648 477 779 257 582 203 195 169 655 680 756 698 637 276 999 686 170 700 607 718 557 893 150 Hop . | . . . . . . . . . . . . . . . . . . . . . . . . . . . Pick Up 253 | 1 21 4 4 6 31 21 7 14 10 4 9 10 1 1 9 1 4 3 1 2 1 19 24 2 33 10 Fast Attach 195 | 1 4 1 2 3 12 6 2 7 8 5 1 6 5 1 11 . 8 8 2 9 . 13 26 15 35 4 Attach 134 | . 3 . . 4 6 10 7 7 1 . 6 5 . 1 1 . 2 . . 1 2 13 17 . 24 24 Detach 34 | . . . 2 1 2 1 1 . 3 2 . 2 . . 1 . 2 . . . . 1 4 1 6 5 Swap 317 | . 6 3 . 6 25 37 5 24 5 5 13 4 1 3 7 13 9 8 . 1 5 38 28 4 40 27 Drop 346 | . 10 4 6 8 43 17 3 16 20 9 5 5 6 3 23 1 11 11 3 11 . 19 42 17 42 11 Fire 1476 | 10 64 22 . 40 102 147 27 64 10 54 76 76 16 12 10 21 35 80 8 11 30 145 75 10 174 157 Melee 25 | . . . . . . 8 13 4 . . . . . . . . . . . . . . . . . . Ram . | . . . . . . . . . . . . . . . . . . . . . . . . . . . Kick . | . . . . . . . . . . . . . . . . . . . . . . . . . . . Crush 19 | . 1 . . 1 . 4 . . . . . 3 . . . . . . 1 . . 1 4 1 3 . Escape Stasis 27 | . . . . . . . . 2 . . . . . . . . . . . . . . 2 . 10 13 Rewire 257 | . . . . . . . . 174 . . . . 1 . 24 . . . 58 . . . . . . . Trap . | . . . . . . . . . . . . . . . . . . . . . . . . . . . Miscellaneous . | . . . . . . . . . . . . . . . . . . . . . . . . . . . Route ------- -11/Scrapyard -10/Materials (discovered 5 exits: [*Mat x3] / *Min x2) -10/Mines (discovered 3 exits: [*Mat x2] / *Exi) -10/Exiles -9/Mines (discovered 2 exits: *Mat x2) -8/Materials (discovered 3 exits: *Fac x3) -7/Factory (discovered 2 exits: *Fac x2) -6/Factory (discovered 4 exits: *Low x2 / *Ext x2) -6/Extension (discovered 2 exits: *Fac / *Cet) -6/Cetus (discovered 2 exits: *Fac / [*Arc]) -6/Archives (discovered 3 exits: *Fac / *Hub x2) -6/Hub_04(d) (discovered 4 exits: *Fac x4) -5/Factory (discovered 2 exits: *Upp x2) -5/Upper Caves -5/Upper Caves -5/Warlord -4/Proximity Caves -4/Factory (discovered 3 exits: *Res / *Upp x2) -4/Upper Caves -4/Upper Caves (discovered 2 exits: *Res / *Zhi) -4/Zhirov -3/Proximity Caves -3/Research (discovered 4 exits: *Res x2 / Arm / *Qua) -3/Quarantine -2/Research (discovered 2 exits: [*Acc] / *Tes) -2/Testing -1/Access (discovered 2 exits: *Sur / Com) To Epsilon Eridani History --------- Turn | Location | Event 64 | -11/Scrapyard | Discovered new exit (range 1) 79 | -11/Scrapyard | Entered Materials 227 | -10/Materials | Discovered new exit (range 16) 309 | -10/Materials | Build established: Mutant 404 | -10/Materials | Discovered new exit (range 13) 566 | -10/Materials | Discovered new exit (range 3) 1059 | -10/Materials | Lost 3 parts (1p1n1w) 1113 | -10/Materials | Discovered new exit (range 7) 1330 | -10/Materials | Discovered new exit (range 15) 1690 | -10/Materials | Entered Mines 1751 | -10/Mines | Found the Drone Emporium 1784 | -10/Mines | Found Prototype Device 1944 | -10/Mines | Discovered new exit (range 8) 2205 | -10/Mines | Deemed a non-threat by the Exiles lab entrance 2208 | -10/Mines | Discovered new exit (range 5) 2555 | -10/Mines | Received a Rocket Launcher from a helpful Derelict 2575 | -10/Mines | Discovered new exit (range 15) 2598 | -10/Mines | Assembled infested the area 2603 | -10/Mines | Assisted by a Guerilla fighting off Assembled 2716 | -10/Mines | Entered Exiles 2802 | -10/Exiles | Met 8R-AWN 2853 | -10/Exiles | Met EX-HEX 3026 | -10/Exiles | Met EX-DEC 3095 | -10/Exiles | Visited The Gauntlet 3257 | -10/Exiles | Learned location of Zion (-7) 3418 | -10/Exiles | Discovered new exit (range 10) 3443 | -10/Exiles | Entered Mines 3980 | -9/Mines | Excavation squad dispatched 3980 | -9/Mines | A large section of the Mines collapsed 4230 | -9/Mines | Excavation squad dispatched 4480 | -9/Mines | Excavation squad dispatched 4601 | -9/Mines | Discovered new exit (range 12) 4667 | -9/Mines | Learned 8 Materials zone layouts 4924 | -9/Mines | Discovered new exit (range 7) 4928 | -9/Mines | Found a damaged Exp. Sensor Array with a note attached 4932 | -9/Mines | Found Prototype Device 5125 | -9/Mines | Entered Materials 5125 | -8/Materials | Evolved 4 slots: Propulsion x1, Utility x3 5126 | -8/Materials | Identified exit to Factory 5805 | -8/Materials | Lost 3 parts (1p2u) 5925 | -8/Materials | First assault squad dispatched 6392 | -8/Materials | Build established: Scavenger-Mutant 6668 | -8/Materials | Entered Factory 6668 | -7/Factory | Evolved 2 slots: Propulsion x1, Utility x1 6732 | -7/Factory | Identified Exp. Sensor Array 6732 | -7/Factory | Identified Splice Drone Bay 7226 | -7/Factory | Repaired Flak Cannon 7266 | -7/Factory | Repaired Adv. Treads 7657 | -7/Factory | Discovered new exit (range 11) 7755 | -7/Factory | Garrison activated, responded to threat 8030 | -7/Factory | Build established: Mutant 8095 | -7/Factory | Discovered new exit (range 16) 8540 | -7/Factory | Garrison activated, responded to threat 8572 | -7/Factory | Destroyed 11 combat bots 8668 | -7/Factory | First assault squad dispatched 9174 | -7/Factory | High security lockdown imminent 9254 | -7/Factory | High security lockdown engaged 9292 | -7/Factory | Destroyed 11 combat bots 9300 | -7/Factory | Lost 6 parts (1p2n2u1w) 9391 | -7/Factory | Entered another Factory area 9391 | -6/Factory | Evolved 2 slots: Utility x1, Weapon x1 9458 | -6/Factory | Identified exit to Lower Caves 9458 | -6/Factory | Identified exit to Extension 9675 | -6/Factory | Build established: Scavenger-Assassin 9720 | -6/Factory | Crushed by falling debris 9741 | -6/Factory | First assault squad dispatched 9871 | -6/Factory | Lost 3 parts (1p1u1w) 10080 | -6/Factory | Build established: Mutant 10150 | -6/Factory | Entered Extension 10500 | -6/Extension | First assault squad dispatched 10508 | -6/Extension | Lost 5 parts (3n2u) 10722 | -6/Extension | Rescued a captive Derelict 10722 | -6/Extension | Rescued a captive Derelict 10738 | -6/Extension | Build established: Scavenger-Tank 10907 | -6/Extension | Rescued A7 11084 | -6/Extension | Build established: Scavenger-Mutant 11150 | -6/Extension | Disrupted transfer network 11245 | -6/Extension | Spotted B-75 Beast 11268 | -6/Extension | Destroyed B-75 Beast 11269 | -6/Extension | Spotted B-75 Beast 11276 | -6/Extension | Destroyed B-75 Beast 11445 | -6/Extension | Rescued a captive Derelict 11446 | -6/Extension | Rescued a captive Derelict 11552 | -6/Extension | Rescued a captive Derelict 11554 | -6/Extension | Rescued a captive Derelict 11671 | -6/Extension | Rescued a captive Derelict 11672 | -6/Extension | Rescued a captive Derelict 11963 | -6/Extension | Discovered new exit (range 11) 11966 | -6/Extension | Discovered new exit (range 7) 12031 | -6/Extension | Entered Cetus 12031 | -6/Cetus | Accompanied by 12 allies (A7) 12036 | -6/Cetus | Acquired a Cetus Manufacturing Module code from A7 12060 | -6/Cetus | Spotted Cetus Guard 12060 | -6/Cetus | Spotted Cetus Guard 12064 | -6/Cetus | Spotted Cetus Guard 12067 | -6/Cetus | Spotted Cetus Guard 12076 | -6/Cetus | Allies destroyed Cetus Guard 12081 | -6/Cetus | Allies destroyed Cetus Guard 12089 | -6/Cetus | Allies destroyed Cetus Guard 12246 | -6/Cetus | Started Cetus Manufacturing Module 12261 | -6/Cetus | Escorted A7 to Cetus Mainframe 12271 | -6/Cetus | Manufactured an Enhanced Grunt 12296 | -6/Cetus | Manufactured an Enhanced Grunt 12321 | -6/Cetus | Manufactured an Enhanced Grunt 12331 | -6/Cetus | Discovered new exit (range 15) 12346 | -6/Cetus | Manufactured an Enhanced Grunt 12371 | -6/Cetus | Manufactured an Enhanced Grunt 12374 | -6/Cetus | Spotted Cetus Guard 12375 | -6/Cetus | Spotted Cetus Guard 12380 | -6/Cetus | Spotted Cetus Guard 12381 | -6/Cetus | Spotted Cetus Guard 12383 | -6/Cetus | Allies destroyed Cetus Guard 12392 | -6/Cetus | Allies destroyed Cetus Guard 12398 | -6/Cetus | Extracted ID and sensor layout for unrecognized location from A7's data core 12403 | -6/Cetus | Destroyed Cetus Guard 12409 | -6/Cetus | Destroyed Cetus Guard 12434 | -6/Cetus | Found Prototype Protection 12434 | -6/Cetus | Identified Med. Regenerative Plating 12449 | -6/Cetus | Discovered new exit (range 16) 12463 | -6/Cetus | Met Revision 17 12554 | -6/Cetus | Entered Archives 12554 | -6/Archives | Accompanied by 2 allies 12753 | -6/Archives | Discovered new exit (range 16) 12764 | -6/Archives | Discovered new exit (range 16) 12932 | -6/Archives | Discovered new exit (range 16) 13075 | -6/Archives | Entered Hub_04(d) 13075 | -6/Hub_04(d) | Accompanied by 2 allies 13093 | -6/Hub_04(d) | Identified exit to Factory 13214 | -6/Hub_04(d) | Network Hub disabled 13277 | -6/Hub_04(d) | Spotted Lightning 13279 | -6/Hub_04(d) | Spotted Lightning 13295 | -6/Hub_04(d) | Destroyed Lightning 13350 | -6/Hub_04(d) | Destroyed Lightning 13487 | -6/Hub_04(d) | Spotted Lightning 13497 | -6/Hub_04(d) | System corruption reached 10% 13526 | -6/Hub_04(d) | Destroyed Lightning 13575 | -6/Hub_04(d) | Found Powered Armor 13580 | -6/Hub_04(d) | Found Powered Armor 13583 | -6/Hub_04(d) | Found Powered Armor 13593 | -6/Hub_04(d) | Network Hub disabled 13600 | -6/Hub_04(d) | System corruption reached 30% 13602 | -6/Hub_04(d) | Entered Factory 13602 | -5/Factory | Evolved 2 slots: Power x1, Weapon x1 13620 | -5/Factory | Identified exit to Upper Caves 13806 | -5/Factory | Repaired Centrium Heavy Treads 13915 | -5/Factory | Repaired Centrium Heavy Treads 14024 | -5/Factory | Repaired Centrium Medium Armor Plating 14052 | -5/Factory | Repaired Huge Storage Unit 14161 | -5/Factory | Repaired Centrium Medium Armor Plating 14248 | -5/Factory | Repaired Cld. Particle Cannon 14839 | -5/Factory | Central database locked down 15340 | -5/Factory | Repaired Broken Adv. KE Penetrator 15505 | -5/Factory | Build established: Scavenger-Tank 15806 | -5/Factory | Entered Upper Caves 16331 | -5/Upper Caves | Identified exit to Upper Caves 16381 | -5/Upper Caves | Build established: Scavenger-Mutant 17113 | -5/Upper Caves | Entered another Upper Caves area 17114 | -5/Upper Caves | Encountered a Warlord checkpoint 17653 | -5/Upper Caves | Learned Factory trap positions 17758 | -5/Upper Caves | Attracted the attention of an 0b10 base 17784 | -5/Upper Caves | Destroyed 7 combat bots 17814 | -5/Upper Caves | Learned Factory stockpile data 17814 | -5/Upper Caves | Learned Armory emergency access door positions 17814 | -5/Upper Caves | Learned location of 1 exit from Proximity Caves 18450 | -5/Upper Caves | Discovered new exit (range 8) 18965 | -5/Upper Caves | Entered Warlord 19045 | -5/Warlord | System corruption cleaned by Quarantine Array 19547 | -5/Warlord | Received a Watcher feed algorithm from an ecstatic Tinkerer 19842 | -5/Warlord | Met Warlord 19867 | -5/Warlord | Warlord's base attacked by MAIN.C 19878 | -5/Warlord | Found Prototype Reactor 19878 | -5/Warlord | Identified Vortex Chain Reactor 20146 | -5/Warlord | Found Prototype Energy Cannon 20151 | -5/Warlord | Found Prototype Energy Cannon 20217 | -5/Warlord | Warlord forces counterattacked 20476 | -5/Warlord | Spotted Striker 20542 | -5/Warlord | Warlord base infiltrated, sounded retreat 20550 | -5/Warlord | Found Prototype Ballistic Cannon 20550 | -5/Warlord | Identified Hvy. Autocannon 20662 | -5/Warlord | Found Prototype Processor 20662 | -5/Warlord | Identified Exp. Core Analyzer 20692 | -5/Warlord | Spotted Striker 20717 | -5/Warlord | Discovered new exit (range 12) 20743 | -5/Warlord | Entered Proximity Caves 20744 | -4/Proximity Caves | Identified exit to Factory 20779 | -4/Proximity Caves | Build established: Scavenger-Tank 21122 | -4/Proximity Caves | Attracted the attention of an 0b10 base 21147 | -4/Proximity Caves | Destroyed 7 combat bots 21297 | -4/Proximity Caves | Build established: Scavenger-Mutant 21800 | -4/Proximity Caves | Learned Research security intel 22392 | -4/Proximity Caves | Entered Factory 22392 | -4/Factory | Evolved 2 slots: Propulsion x2 22393 | -4/Factory | Identified exit to Upper Caves 22394 | -4/Factory | Loaded intel: 98 trap records 22465 | -4/Factory | Discovered new exit (range 5) 22737 | -4/Factory | Garrison activated, responded to threat 22931 | -4/Factory | Found Unknown Protection 22931 | -4/Factory | Identified Hvy. Reflective Plating 23088 | -4/Factory | Entered Upper Caves 23479 | -4/Upper Caves | Build established: Scavenger-Tank 23660 | -4/Upper Caves | Attracted the attention of an 0b10 base 23726 | -4/Upper Caves | Learned 4 Research zone layouts 23740 | -4/Upper Caves | Attracted the attention of an 0b10 checkpoint 23886 | -4/Upper Caves | Learned 12 Research zone layouts 24214 | -4/Upper Caves | Build established: Scavenger-Mutant 24427 | -4/Upper Caves | Discovered new exit (range 15) 25014 | -4/Upper Caves | Entered another Upper Caves area 25074 | -4/Upper Caves | Discovered new exit (range 8) 25858 | -4/Upper Caves | Attacked by a delusional Derelict stockpiling Unaware 26058 | -4/Upper Caves | Discovered new exit (range 15) 26139 | -4/Upper Caves | Learned location of Armory (-3) 26163 | -4/Upper Caves | Build established: Scavenger-Tank 26250 | -4/Upper Caves | Entered Zhirov 26250 | -4/Zhirov | Accompanied by 4 allies 26250 | -4/Zhirov | Discovered new exit (range 3) 26282 | -4/Zhirov | Met Zhirov 26318 | -4/Zhirov | Learned location of Quarantine (-3) 26318 | -4/Zhirov | Learned location of Testing (-2) 26318 | -4/Zhirov | Learned location of Command (-1) 26328 | -4/Zhirov | Zhirov requested help retrieving the SGEMP Prototype 26354 | -4/Zhirov | Found Alien Artifact 26354 | -4/Zhirov | Identified Integrated Reactor 26354 | -4/Zhirov | Installed Integrated Reactor, increased core energy generation (+10) 26476 | -4/Zhirov | Found Alien Artifact 26577 | -4/Zhirov | Entered Proximity Caves 26577 | -3/Proximity Caves | Accompanied by 4 allies 27269 | -3/Proximity Caves | Attracted the attention of an 0b10 base 27352 | -3/Proximity Caves | Learned Factory stockpile data 27352 | -3/Proximity Caves | Learned Armory emergency access door positions 27352 | -3/Proximity Caves | Learned 8 Research zone layouts 27607 | -3/Proximity Caves | Build established: Scavenger-Mutant 27826 | -3/Proximity Caves | Discovered new exit (range 14) 27869 | -3/Proximity Caves | Entered Research 27869 | -3/Research | Evolved 2 slots: Utility x2 27870 | -3/Research | Identified exit to Research 27870 | -3/Research | Identified exit to Armory 28315 | -3/Research | Repaired Centrium Medium Armor Plating 28818 | -3/Research | System corruption reached 10% 29121 | -3/Research | Found Prototype Device 29130 | -3/Research | Destroyed 9 combat bots 29169 | -3/Research | First assault squad dispatched 29231 | -3/Research | Found Prototype Device 29231 | -3/Research | Identified Exp. EM Disruption Field 29378 | -3/Research | Identified Vortex Cannon (x2) 29446 | -3/Research | Destroyed 10 combat bots 29448 | -3/Research | Discovered exit to Research (range 15) 29500 | -3/Research | Found Prototype Launcher 29566 | -3/Research | Discovered new exit (range 8) 29577 | -3/Research | Entered Quarantine 29640 | -3/Quarantine | Repaired Hvy. Siege Treads 29649 | -3/Quarantine | Identified Active Sensor Suite 29746 | -3/Quarantine | Found Alien Artifact 29746 | -3/Quarantine | Identified Phase Redirector 29813 | -3/Quarantine | Found Alien Artifact 29813 | -3/Quarantine | Identified Phase Armor 29961 | -3/Quarantine | Found Fusion Bomb Launcher 29970 | -3/Quarantine | Identified Hellfire Missile Launcher 29998 | -3/Quarantine | Found Alien Artifact 30189 | -3/Quarantine | Spotted Alpha 7 30199 | -3/Quarantine | Scanned by Researcher 30217 | -3/Quarantine | Destroyed Alpha 7 30327 | -3/Quarantine | First assault squad dispatched 30385 | -3/Quarantine | Cryocooling Duct disabled 30400 | -3/Quarantine | Ambient heat levels rising (+20) 30400 | -3/Quarantine | Non-combat units ordered to evacuate 30416 | -3/Quarantine | Destroyed 10 combat bots 30424 | -3/Quarantine | System corruption reached 30% 30476 | -3/Quarantine | Found Alien Launcher 30503 | -3/Quarantine | Cryocooling Duct disabled 30518 | -3/Quarantine | Ambient heat levels rising (+20) 30518 | -3/Quarantine | Combat units ordered to evacuate 30618 | -3/Quarantine | Quarantine Guard activated 30646 | -3/Quarantine | Spotted Quarantine Guard 30652 | -3/Quarantine | Destroyed Quarantine Guard 30690 | -3/Quarantine | Discovered exit to Research (range 15) 30690 | -3/Quarantine | Spotted Quarantine Guard 30715 | -3/Quarantine | Destroyed Quarantine Guard 30739 | -3/Quarantine | Spotted Quarantine Guard 30755 | -3/Quarantine | Destroyed Quarantine Guard 30803 | -3/Quarantine | Spotted Quarantine Guard 30830 | -3/Quarantine | Destroyed Quarantine Guard 30880 | -3/Quarantine | Spotted Quarantine Guard 30903 | -3/Quarantine | Destroyed Quarantine Guard 30939 | -3/Quarantine | Build established: Scavenger-Tank 31010 | -3/Quarantine | Spotted Quarantine Guard 31023 | -3/Quarantine | Destroyed Quarantine Guard 31480 | -3/Quarantine | Found Alien Slashing Weapon 31480 | -3/Quarantine | Identified Sigix Broadsword 31497 | -3/Quarantine | Entered Research 31497 | -2/Research | Warlord forces began assault on 0b10 31497 | -2/Research | Evolved 2 slots: Utility x2 31598 | -2/Research | Spotted B-90 Cyclops 31607 | -2/Research | Research machine network offline 31674 | -2/Research | Discovered new exit (range 5) 31775 | -2/Research | Discovered new exit (range 5) 31848 | -2/Research | Build established: Scavenger-Mutant 31874 | -2/Research | Found Prototype Launcher 31874 | -2/Research | Identified Point Singularity Launcher 32354 | -2/Research | Borebot progress halted 32481 | -2/Research | P-80 Master assimilated allied HX-8FU(i) 32484 | -2/Research | P-80 Master assimilated allied 83-ZT8(i) 32530 | -2/Research | Met up with Warlord 32532 | -2/Research | Warlord invited to help at Command 32543 | -2/Research | Spotted Striker 32544 | -2/Research | Spotted Executioner 32600 | -2/Research | Identified exit to Testing 32602 | -2/Research | Entered Testing 32608 | -2/Testing | Found Prototype Device 32608 | -2/Testing | Identified Exp. Shield Generator 32612 | -2/Testing | Found Exp. Shield Generator 32636 | -2/Testing | Build established: Scavenger-Gunner 32648 | -2/Testing | Spotted PP-LGFRTK8G8L 32654 | -2/Testing | Discovered new exit (range 63) 32739 | -2/Testing | Found Prototype Protection 32739 | -2/Testing | Identified SHELL Armor 32747 | -2/Testing | Found Prototype Protection 32747 | -2/Testing | Identified Hvy. Regenerative Plating 32900 | -2/Testing | Garrison activated, responded to threat 32966 | -2/Testing | Destroyed 12 combat bots 33337 | -2/Testing | Found Prototype Device 33337 | -2/Testing | Identified Exp. Hardlight Generator 33352 | -2/Testing | First assault squad dispatched 33389 | -2/Testing | High security lockdown imminent 33404 | -2/Testing | Destroyed 8 combat bots 33438 | -2/Testing | Found Prototype Device 33438 | -2/Testing | Identified AEGIS Remote Shield 33469 | -2/Testing | High security lockdown engaged 33558 | -2/Testing | Lost 4 parts (1p2u1w) 33595 | -2/Testing | Found Prototype Energy Cannon 33598 | -2/Testing | Destroyed 19 combat bots 33644 | -2/Testing | Spotted Investigator 33644 | -2/Testing | Spotted Alpha 7 33655 | -2/Testing | Destroyed Investigator 33670 | -2/Testing | System corruption reached 10% 33687 | -2/Testing | Destroyed Alpha 7 33708 | -2/Testing | Destroyed 15 combat bots 33809 | -2/Testing | Spotted Striker 33817 | -2/Testing | Spotted Striker 33829 | -2/Testing | Destroyed Striker 33835 | -2/Testing | Destroyed Striker 33875 | -2/Testing | Destroyed 24 combat bots 33987 | -2/Testing | Spotted Investigator 33991 | -2/Testing | Destroyed Investigator 34016 | -2/Testing | Spotted Executioner 34017 | -2/Testing | Spotted Striker 34050 | -2/Testing | Lost 4 parts (3u1w) 34067 | -2/Testing | Destroyed 26 combat bots 34210 | -2/Testing | Spotted Striker 34210 | -2/Testing | Spotted Striker 34218 | -2/Testing | Destroyed Striker 34218 | -2/Testing | Destroyed Striker 34220 | -2/Testing | Sterilization system engaged 34220 | -2/Testing | Non-combat units ordered to evacuate 34282 | -2/Testing | Spotted Executioner 34282 | -2/Testing | Spotted Executioner 34293 | -2/Testing | Destroyed 27 combat bots 34293 | -2/Testing | Destroyed Executioner 34297 | -2/Testing | System corruption reached 30% 34298 | -2/Testing | Destroyed Executioner 34320 | -2/Testing | Combat units ordered to evacuate 34321 | -2/Testing | Destroyed 8 combat bots 34327 | -2/Testing | Lost 3 parts (1n1u1w) 34516 | -2/Testing | Build established: Scavenger-Mutant 34520 | -2/Testing | Ambient heat levels rising (+10) 34670 | -2/Testing | Ambient heat levels rising (+10) 34711 | -2/Testing | Found Prototype Protection 34711 | -2/Testing | Identified Lgt. Regenerative Plating 34717 | -2/Testing | Found Lgt. Regenerative Plating 34820 | -2/Testing | Ambient heat levels rising (+10) 34867 | -2/Testing | Found Prototype Launcher 34909 | -2/Testing | Found Prototype Device 34970 | -2/Testing | Ambient heat levels rising (+10) 34981 | -2/Testing | Found Prototype Launcher 35019 | -2/Testing | Found Prototype Energy Cannon 35019 | -2/Testing | Identified Null Cannon 35120 | -2/Testing | Ambient heat levels rising (+10) 35125 | -2/Testing | Identified Exp. Transmission Jammer 35127 | -2/Testing | Stole the SGEMP Prototype 35270 | -2/Testing | Ambient heat levels rising (+10) 35349 | -2/Testing | Identified Ragnarok Missile Launcher 35350 | -2/Testing | Identified Tesla Bomb Launcher 35420 | -2/Testing | Ambient heat levels rising (+10) 35506 | -2/Testing | Entered Access 35506 | -1/Access | Evolved 2 slots: Utility x1, Weapon x1 35507 | -1/Access | Loaded intel: 117 machine locations 35507 | -1/Access | Loaded intel: 108 trap records 35507 | -1/Access | Identified exit to Surface 35507 | -1/Access | Discovered exit to Surface (range 112) 35507 | -1/Access | Identified exit to Command 35507 | -1/Access | Discovered exit to Command (range 203) 35507 | -1/Access | Delivered the SGEMP Prototype to Zhirov 35507 | -1/Access | Zhirov transferred Access data 35508 | -1/Access | Identified Subatomic Replicator 35508 | -1/Access | Used Subatomic Replicator to replicate SHELL Armor 35573 | -1/Access | High security lockdown imminent 35653 | -1/Access | Build established: Scavenger-Gunner 35653 | -1/Access | High security lockdown engaged 35721 | -1/Access | Spotted B-99 Colossus 35724 | -1/Access | Zhirov warped through subspace 35866 | -1/Access | Spotted Investigator 35868 | -1/Access | Destroyed Investigator 35893 | -1/Access | Destroyed 24 combat bots 36008 | -1/Access | Destroyed 21 combat bots 36065 | -1/Access | Spotted Investigator 36085 | -1/Access | Spotted Striker 36085 | -1/Access | Spotted Striker 36085 | -1/Access | Spotted Striker 36089 | -1/Access | Destroyed Striker 36091 | -1/Access | Destroyed Striker 36105 | -1/Access | Destroyed Striker 36138 | -1/Access | Destroyed Investigator 36152 | -1/Access | Destroyed 20 combat bots 36156 | -1/Access | Crushed by falling debris 36169 | -1/Access | Identified Imp. Potential Cannon 36198 | -1/Access | Spotted Executioner 36198 | -1/Access | Spotted Executioner 36204 | -1/Access | Destroyed Executioner 36208 | -1/Access | Spotted Executioner 36210 | -1/Access | Garrison activated, responded to threat 36212 | -1/Access | Destroyed Executioner 36224 | -1/Access | Destroyed Executioner 36244 | -1/Access | Spotted Striker 36244 | -1/Access | Spotted Executioner 36249 | -1/Access | Destroyed Executioner 36251 | -1/Access | System corruption reached 10% 36252 | -1/Access | Destroyed Striker 36259 | -1/Access | Spotted Striker 36264 | -1/Access | Destroyed Striker 36304 | -1/Access | Destroyed 28 combat bots 36308 | -1/Access | System corruption reached 30% 36309 | -1/Access | Identified Sigix Terminator 36310 | -1/Access | Fired Sigix Terminator 36331 | -1/Access | Destroyed 10 combat bots 36338 | -1/Access | Lost 13 parts (2p2n4u5w) 36395 | -1/Access | Sterilization system engaged 36416 | -1/Access | Destroyed 7 combat bots 36427 | -1/Access | Spotted Striker 36434 | *** | Escaped! Last Messages --------------- 36427_ Penetrated by Slug. 36429_ Acquired 8 matter. 36429_ Imp. Remote Shield destroyed. 36430_ System corrupted: Enh. Nova Cannon failed to cycle. 36431_ Acquired 4 matter. 36431_ Penetrated by Slug. 36432_ R-10 Processor collects Unknown Flight Unit. 36432_ Penetrated by Slug. 36432_ Critical hit (Destroy). 36432_ Arm. Heavy Treads destroyed. 36432_ Slug penetrates Earth. 36432_ Enh. Nova Cannon destroyed. 36433_ Acquired 2 matter. 36433_ Null Cannon blown off. 36433_ E-15 Imp destroyed. 36433_ Enh. Nova Cannon destroyed. 36433_ Arm. Heavy Treads destroyed. 36434_ Acquired 18 matter. 36434_ P-80 Master resets B-74 Champion, system corruption cleaned. Map ----- +----------------------------------------------------+ | ### # !=[ ## ## # | | ## ###### #+##+## # !########### ##^# | | ## ##### % = % =%!########## ## # | | ## ##### % = " ######## ## # | | ## ##### = % " ###### ## # | | ## ####" " ### ## # | | ## ### " " # ## # | | ## ####" ## # | | ## ####" " # ## # | | ##+######+## ## # | | # " # #####+### | | % = | | !%% %*? | | " "" # R [K! #####+### | | """ ; # p # ## | | """ ; # = p # "* ## | | " ; m " ""## | | # ; ! # ""## | | ; # ""## | | " ; ; # G## | | " ; ; ; ## ""## | | ; ; ;; ;; ## ""#### | | #########""; ; *; ; ## ""## | | ######### ; ; [ = p b! = ; ### ## | | ######### ; ; ; l/= ; ### ## | | #########";; ; g g @" ; #### ## | | ### ; % i; "" ; #### ## | | ### % ;h ; ##### ## | | ### ; ; ############### | | ### ; ################# | | ### + ; """################# | | # " # ; # """"""################# | | + """ # ; ## # """""""""################# | | # """ # ;######""""""""""################# | | # " # ####### ################# | | ########## ####### ?? ?? ################# | | ########## ####### ?? ?? ################# | | ########## ####### ################# | | ########## ####### ################# | | ########## ####### ################# | | ############ ####### ################### | | ############ ########## ################### | | ############ # # ################### | | ############ # # ################### | | ## # # + ################### | | ## # # # ################### | | ## # # # ################### | | ## # # # # ######### | | ## # # # # ######### | | ## # # # # ############ | +----------------------------------------------------+ Best States ------------- Heat Dissipation 142 Coolant Potential 120 Energy Generation 71 Energy Capacity 1560 Matter Stores 550 Matter Capacity 550 Sight Range 16 Robot Scan Range 20 Terrain Scan Range 20 Terrain Scan Density 210 Jamming Range 22 Power Amplification 40 EM Shielding 3 Armor Coverage 3600 Resistance: TH 30 Core Shielding 20 Propulsion Shielding 33 Utility Shielding 33 Weapon Cycling 20 Evasion (%) 55 Targeting Accuracy 6 Launcher Accuracy 40 Core Analysis 8 Armor Integrity Analysis 30 Recoil Reduction 6 Matter Filtering 50 Offensive Hacking 36 Defensive Hacking 12 Item Schematics ----------------- Assault Drone Bay | -4/Zhirov | Free Exp. Heat Sink | -4/Zhirov | Free Exp. Optical Array | -4/Zhirov | Free Imp. Arc Thrower | -4/Zhirov | Free Centrium Heavy Treads | -2/Testing | Archive Mni. Fusion Reactor | -2/Testing | Archive Adv. Variable Charge Gun | -2/Testing | Archive Robot Schematics ------------------ A-02 Transporter | -2/Testing | Archive H-88 Terminator | -2/Testing | Archive E-15 Imp | -2/Testing | Archive C-65 Expert | -2/Testing | Archive Fabricated ------------ Nothing Alien Tech Used ----------------- Integrated Reactor Phase Redirector Phase Armor Sigix Broadsword Subatomic Replicator Sigix Terminator Achievements -------------- Special Delivery Challenges ------------ None Game ------ Seed CloakingSapperNukerbomber Manual? 0 Play Time 07:59:21 Cumulative 713.7 hours Start 2022.06.04 @ 02:12:07 End 2022.06.08 @ 03:28:50 Sessions 17 Manual Loads 0 Difficulty Rogue Special Mode None Game No. 175 Rogue 143 Adventurer 31 Explorer 1 Win Type 0 Total 35 Types 26/0/4/4/0/0/1/0/0 Lore% 83 Gallery% 86 Achievement% 73 Wizard Run 0 Options --------- ASCII 0 Keyboard 0 Movement Arrows Keybinds 0 Fullscreen 1 Font 20/Terminus Map View 66x50 Tactical HUD 1 Map Filters NONE Filters NONE Steam 1 RUN: a111a48f-b23b-467f-9a1e-8b9b1aa6a14f